bitfinex/quotes_SOLUSD_20241115
["timestamp","ask_amount","ask_price","bid_price","bid_amount"]
[1731705258683,8.07866052,217.04,216.99,11.31045515]
[1731705258962,23.776884,217.12,216.99,11.31045515]
[1731705259161,8.07866052,217.05,217.01,0.09367462]
[1731705259359,3.2241,217.11,217.01,0.09367462]
[1731705259669,8.07866052,217.06,217.01,6.70215515]
[1731705260045,8.07866052,217.06,217.03,0.09367462]
[1731705260348,9.211,217.13,217.03,0.09367462]
[1731705260559,3.224,217.12,217.03,0.09367462]
[1731705260769,8.07866052,217.06,217.03,0.09367462]
[1731705261064,8.07866052,217.05,217.03,0.09367462]
[1731705261273,8.07866052,217.04,217.03,0.09367462]
[1731705261863,8.07866052,217.04,217.01,0.09367462]
[1731705262071,8.07866052,217.03,217.01,0.09367462]
[1731705262464,8.07866052,217.03,217.01,4.70167462]
[1731705262959,8.07866052,217.04,217.01,4.70167462]
[1731705263574,8.07866052,217.05,217.01,4.70167462]
[1731705264149,11.23465572,217.14,217.01,4.70167462]
[1731705264371,8.07866052,217.05,217.01,4.70167462]
[1731705266971,8.07866052,217.06,217.01,11.07873697]
[1731705268074,8.07866052,217.03,217.01,6.47073697]
[1731705268284,8.07866052,217.04,217.01,0.09367462]
[1731705268576,8.07866052,217.05,217.01,0.09367462]
[1731705269357,8.07866052,217.05,217.01,4.70167462]
[1731705269873,3.2246,217.08,217.01,4.70167462]
[1731705270059,8.07866052,217.05,217.01,4.70167462]
[1731705270661,8.07866052,217.06,217.01,4.70167462]
[1731705271181,8.07866052,217.07,217.01,16.22187462]
[1731705271393,3.224,217.12,217.01,16.22187462]
[1731705271394,3.224,217.12,217.03,0.09367462]
[1731705271680,0.4493467,217.18,217.03,0.09367462]
[1731705271681,0.4493467,217.18,217.12,0.25098]
[1731705271854,0.4493467,217.18,217.13,0.09367462]
[1731705271855,8.07866052,217.17,217.13,0.09367462]
[1731705272286,0.4493467,217.18,217.06,0.09367462]
[1731705272498,3.2233,217.17,217.11,0.09367462]
[1731705272689,0.4493467,217.18,217.11,8.29782514]
[1731705272874,8.07866052,217.17,217.11,0.21916462]
[1731705273065,8.07866052,217.15,217.09,0.12549]
[1731705273264,8.07866052,217.14,217.08,11.5163]
[1731705273674,8.07866052,217.14,217.09,0.09367462]
[1731705273872,3.6724467,217.18,217.09,0.09367462]
[1731705273873,11.30226052,217.15,217.09,0.09367462]
[1731705274183,0.4493467,217.18,217.09,0.09367462]
[1731705274384,8.07866052,217.15,217.09,0.09367462]
[1731705274967,8.07866052,217.17,217.09,12.77863514]
[1731705275184,8.07866052,217.17,217.11,0.09367462]
[1731705275965,11.30186052,217.17,217.11,0.09367462]
[1731705276484,3.2232,217.17,217.12,0.09367462]
[1731705277784,11.30186052,217.17,217.11,0.09367462]
[1731705278169,8.52800722,217.18,217.11,8.17233514]
[1731705278368,11.75110722,217.18,217.11,8.17233514]
[1731705278576,3.6724467,217.18,217.12,8.07866052]
[1731705280090,3.6724467,217.18,217.11,0.09367462]
[1731705280091,3.6724467,217.18,217.13,8.07866052]
[1731705280479,0.4493467,217.18,217.14,0.09367462]
[1731705280673,0.4493467,217.18,217.14,8.17233514]
[1731705282083,0.4493467,217.18,217.15,8.07866052]
[1731705282284,11.75110722,217.18,217.07,16.1236]
[1731705282485,11.75110722,217.18,217.11,8.07866052]
[1731705282686,8.07866052,217.17,217.07,16.1236]
[1731705282883,11.75110722,217.18,217.11,8.07866052]
[1731705284277,8.52800722,217.18,217.11,8.07866052]
[1731705284474,3.2234,217.16,217.11,8.07866052]
[1731705284775,3.2234,217.16,217.09,0.09367462]
[1731705284776,3.2234,217.16,217.12,8.07866052]
[1731705285191,0.4493467,217.18,217.15,8.07866052]
[1731705285491,0.4493467,217.18,217.16,8.07866052]
[1731705285666,0.4493467,217.18,217.14,8.07866052]
[1731705285870,3.6724467,217.18,217.14,8.07866052]
[1731705286288,0.4493467,217.18,217.15,8.07866052]
[1731705288197,0.4493467,217.18,217.16,8.07866052]
[1731705288576,0.4493467,217.18,217.15,8.07866052]
[1731705288780,0.4493467,217.18,217.17,8.07866052]
[1731705289401,0.4493467,217.18,217.17,8.17233514]
[1731705291091,3.6724467,217.18,217.14,31.4245]
[1731705291286,0.4493467,217.18,217.14,39.50316052]
[1731705291499,0.4493467,217.18,217.16,8.07866052]
[1731705292282,0.4493467,217.18,217.15,8.07866052]
[1731705294211,3.6724467,217.18,217.14,8.07866052]
[1731705294392,0.4493467,217.18,217.15,8.07866052]
[1731705295095,0.4493467,217.18,217.14,8.07866052]
[1731705295286,3.6724467,217.18,217.14,8.07866052]
[1731705295603,3.6724467,217.18,217.15,8.07866052]
[1731705296103,3.6724467,217.18,217.14,8.07866052]
[1731705296287,3.6724467,217.18,217.11,0.09367462]
[1731705296480,3.6724467,217.18,217.13,8.07866052]
[1731705297401,3.6724467,217.18,217.14,8.07866052]
[1731705298099,0.4493467,217.18,217.16,8.07866052]
[1731705300304,0.4493467,217.18,217.17,8.07866052]
[1731705301590,0.4493467,217.18,217.17,12.77693514]
[1731705305908,0.4493467,217.18,217.17,4.69827462]
[1731705306095,0.4493467,217.18,217.17,12.77693514]
[1731705306909,0.4493467,217.18,217.17,13.02791514]
[1731705307683,0.4493467,217.18,217.17,33.02791514]
[1731705308518,0.4493467,217.18,217.17,24.94925462]
[1731705308690,0.4493467,217.18,217.17,33.02791514]
[1731705309099,0.10023968,217.18,217.17,33.02791514]
[1731705309309,0.27619,217.25,217.18,20.34465462]
[1731705309608,0.27619,217.25,217.24,8.17233514]
[1731705310703,0.5399834,217.25,217.24,8.17233514]
[1731705310911,0.5399834,217.25,217.24,7.67233514]
[1731705311085,0.5399834,217.25,217.24,12.27553514]
[1731705313205,0.5399834,217.25,217.24,4.69687462]
[1731705313506,0.5399834,217.25,217.24,12.77553514]
[1731705318007,0.5399834,217.25,217.24,13.02651514]
[1731705318199,0.5399834,217.25,217.24,4.82236462]
[1731705318515,0.5399834,217.25,217.24,8.17233514]
[1731705318888,0.5399834,217.25,217.22,11.5085]
[1731705319711,0.5399834,217.25,217.22,19.58716052]
[1731705319907,0.5399834,217.25,217.23,8.07866052]
[1731705320307,0.5399834,217.25,217.22,11.5085]
[1731705321016,0.5399834,217.25,217.22,19.58716052]
[1731705321801,8.07866052,217.23,217.13,42.13621638]
[1731705321996,8.07866052,217.21,217.14,19.59176052]
[1731705322705,8.07866052,217.22,217.15,8.07866052]
[1731705323497,8.07866052,217.22,217.14,11.5131]
[1731705323498,8.07866052,217.21,217.14,19.59176052]
[1731705323704,11.30146052,217.2,217.14,11.5131]
[1731705323916,11.30146052,217.2,217.13,8.07866052]
[1731705324319,3.2228,217.2,217.16,8.07866052]
[1731705324511,3.2228,217.2,217.15,8.07866052]
[1731705324692,3.2228,217.2,217.16,8.07866052]
[1731705325016,3.2228,217.2,217.15,8.07866052]
[1731705325613,3.2222,217.24,217.16,8.07866052]
[1731705325892,11.56465392,217.24,217.17,8.07866052]
[1731705326111,8.07866052,217.23,217.16,8.07866052]
[1731705326291,8.07866052,217.21,217.14,8.07866052]
[1731705326701,8.07866052,217.21,217.12,16.21347462]
[1731705326702,8.07866052,217.23,217.16,8.07866052]
[1731705327327,11.56465392,217.24,217.16,8.07866052]
[1731705327497,3.4859934,217.24,217.19,8.07866052]
[1731705328317,0.2637934,217.24,217.2,8.07866052]
[1731705329317,0.2637934,217.24,217.22,8.07866052]
[1731705329522,0.2637934,217.24,217.23,8.07866052]
[1731705332502,0.2637934,217.24,217.23,8.42331514]
[1731705334213,0.2637934,217.24,217.23,28.42331514]
[1731705335724,0.2637934,217.24,217.23,8.42331514]
[1731705336414,0.2637934,217.24,217.23,8.07866052]
[1731705336722,0.2637934,217.24,217.2,8.07866052]
[1731705336929,3.4859934,217.24,217.16,16.1165]
[1731705337223,3.4859934,217.24,217.19,8.07866052]
[1731705337924,3.4859934,217.24,217.17,0.09367462]
[1731705338114,3.4859934,217.24,217.18,8.07866052]
[1731705338430,3.4859934,217.24,217.19,8.07866052]
[1731705338804,3.4859934,217.24,217.18,8.07866052]
[1731705339000,3.4859934,217.24,217.1,32.2467]
[1731705339225,11.56465392,217.24,217.16,8.07866052]
[1731705341207,8.07866052,217.23,217.14,4.6051]
[1731705341420,8.07866052,217.23,217.16,8.07866052]
[1731705341621,8.07866052,217.21,217.14,8.07866052]
[1731705342106,8.07866052,217.22,217.15,8.07866052]
[1731705343420,3.2226,217.21,217.15,8.07866052]
[1731705343826,3.2226,217.21,217.17,8.07866052]
[1731705344232,3.2224,217.23,217.18,8.07866052]
[1731705344436,3.2224,217.23,217.19,8.07866052]
[1731705345015,3.2224,217.23,217.18,8.07866052]
[1731705345232,11.30106052,217.23,217.16,8.07866052]
[1731705345527,3.2226,217.21,217.16,8.07866052]
[1731705346430,3.2226,217.21,217.17,8.07866052]
[1731705346639,3.2223,217.23,217.18,8.07866052]
[1731705348139,3.2223,217.23,217.15,0.09367462]
[1731705348332,3.2223,217.23,217.17,8.07866052]
[1731705348513,3.2223,217.23,217.18,8.07866052]
[1731705348713,3.2223,217.23,217.17,8.07866052]
[1731705349224,3.2223,217.23,217.18,8.07866052]
[1731705349918,3.2223,217.23,217.19,8.07866052]
[1731705353138,11.30096052,217.23,217.15,0.09367462]
[1731705353431,3.2223,217.23,217.17,8.07866052]
[1731705353829,3.2223,217.23,217.09,56.31839926]
[1731705353830,0.1,217.15,217.09,56.31839926]
[1731705354024,31.85554452,217.16,217.08,42.13621638]
[1731705354538,22.23391559,217.15,217.13,8.07866052]
[1731705354841,82.2795794,217.14,217.13,8.07866052]
[1731705355236,82.2795794,217.14,217.05,11.518]
[1731705355237,272.27875935,217.14,217.11,8.07866052]
[1731705355430,82.2795794,217.13,217.03,32.45970998]
[1731705355636,129.94030429,217.1,217.04,0.25098]
[1731705355836,129.94030429,217.1,217.03,32.31464208]
[1731705355837,115.49856671,217.05,217.03,32.31464208]
[1731705356129,113.86092337,217.04,217.03,52.31464208]
[1731705356533,91.62700778,217.04,217.03,52.31464208]
[1731705356735,115.49856671,217.05,217.04,20.09367462]
[1731705357314,115.49856671,217.05,217.04,32.77973514]
[1731705357624,115.49856671,217.05,217.04,24.95205462]
[1731705357823,115.49856671,217.05,217.04,33.03071514]
[1731705358138,115.49856671,217.05,217.04,13.00067514]
[1731705358843,129.94030429,217.1,217.05,4.73259]
[1731705359141,129.94030429,217.1,217.09,8.07866052]
[1731705360844,129.94030429,217.1,217.09,12.77863514]
[1731705361026,129.94030429,217.1,217.09,33.02961514]
[1731705361342,129.94030429,217.1,217.09,13.02961514]
[1731705361539,129.94030429,217.1,217.09,4.69997462]
[1731705361744,129.94030429,217.1,217.09,0.09367462]
[1731705361940,129.94030429,217.1,217.09,64.53889388]
[1731705362316,129.94030429,217.1,217.09,56.46023336]
[1731705362552,129.94030429,217.1,217.08,69.05171926]
[1731705362748,129.94030429,217.1,217.08,64.44521926]
[1731705363446,129.94030429,217.1,217.09,8.07866052]
[1731705363616,129.94030429,217.1,217.08,56.36655874]
[1731705363822,129.94030429,217.1,217.07,64.44521926]
[1731705364048,129.94030429,217.1,217.07,56.36655874]
[1731705364342,129.94030429,217.1,217.09,42.26321962]
[1731705365131,138.01896481,217.1,217.09,42.26321962]
[1731705365339,129.94030429,217.1,217.09,42.26321962]
[1731705365652,133.62530429,217.1,217.06,56.36655874]
[1731705365822,133.62530429,217.1,217.05,98.86433912]
[1731705366128,133.62530429,217.1,217.06,84.7147825]
[1731705366321,141.70396481,217.1,217.06,84.7147825]
[1731705366541,141.70396481,217.1,217.09,70.51671162]
[1731705366734,133.62530429,217.1,217.09,70.51671162]
[1731705367732,133.62530429,217.1,217.08,56.35789745]
[1731705367940,133.62530429,217.1,217.09,56.35789745]
[1731705368135,129.94030429,217.1,217.09,56.35789745]
[1731705368525,129.94030429,217.1,217.07,78.59537214]
[1731705368940,3.6848,217.11,217.09,70.51671162]
[1731705369141,11.76256052,217.16,217.09,70.51671162]
[1731705369447,8.07866052,217.15,217.12,42.24482555]
[1731705369836,8.07866052,217.13,217.12,42.24482555]
[1731705370042,11.76306052,217.13,217.12,42.24482555]
[1731705370541,3.6844,217.13,217.12,42.21189279]
[1731705371128,11.76306052,217.13,217.12,42.21189279]
[1731705372422,8.07866052,217.14,217.12,42.21189279]
[1731705372946,8.07866052,217.13,217.12,42.21189279]
[1731705373144,8.07866052,217.14,217.12,42.21189279]
[1731705373330,8.07866052,217.14,217.13,42.17526219]
[1731705374426,11.76286052,217.14,217.13,42.17526219]
[1731705375846,23.776884,217.16,217.1,70.51671162]
[1731705376052,8.07866052,217.13,217.1,70.51671162]
[1731705376551,8.07866052,217.13,217.08,42.17526219]
[1731705377431,8.07866052,217.14,217.08,42.17526219]
[1731705377851,8.07866052,217.12,217.08,42.17526219]
[1731705378634,11.76336052,217.12,217.08,42.17526219]
[1731705379138,3.684,217.16,217.11,8.07866052]
[1731705379348,3.6838,217.17,217.11,50.25392271]
[1731705380075,0.2637934,217.18,217.12,50.25392271]
[1731705380264,0.2637934,217.18,217.13,8.07866052]
[1731705380555,0.2637934,217.18,217.14,42.17526219]
[1731705380757,3.9473934,217.18,217.14,42.17526219]
[1731705380955,12.02605392,217.18,217.14,42.17526219]
[1731705381147,8.07866052,217.15,217.13,42.17526219]
[1731705381658,8.07866052,217.15,217.12,42.17526219]
[1731705382558,3.9473934,217.18,217.11,42.17526219]
[1731705382559,8.07866052,217.16,217.11,42.17526219]
[1731705382736,3.684,217.16,217.12,42.17526219]
[1731705383454,3.684,217.16,217.13,42.17526219]
[1731705385154,0.2637934,217.18,217.14,8.07866052]
[1731705385341,0.2637934,217.18,217.15,8.07866052]
[1731705385753,8.07866052,217.21,217.14,8.07866052]
[1731705386336,8.07866052,217.21,217.14,12.68396052]
[1731705386536,8.07866052,217.23,217.16,8.07866052]
[1731705386954,3.2222,217.24,217.16,8.07866052]
[1731705387155,3.2222,217.24,217.19,8.07866052]
[1731705388061,3.2222,217.24,217.2,8.07866052]
[1731705388439,0.27619,217.25,217.2,12.68256052]
[1731705390339,0.27619,217.25,217.19,8.07866052]
[1731705390834,0.27619,217.25,217.23,8.07866052]
[1731705391033,0.27619,217.25,217.24,8.17233514]
[1731705392036,0.27619,217.25,217.24,12.77553514]
[1731705392862,30.8523,217.36,217.25,20.21916462]
[1731705393155,8.07866052,217.37,217.24,16.1112]
[1731705393355,8.07866052,217.3,217.25,0.12549]
[1731705393654,3.6490549,217.39,217.25,0.12549]
[1731705393850,3.6490549,217.39,217.26,0.09367462]
[1731705394055,3.6490549,217.39,217.29,8.07866052]
[1731705394257,8.07866052,217.37,217.29,8.07866052]
[1731705394756,0.4290549,217.39,217.32,8.07866052]
[1731705395164,0.4290549,217.39,217.33,8.07866052]
[1731705395660,8.07866052,217.37,217.3,8.29782514]
[1731705395838,8.07866052,217.37,217.3,8.17233514]
[1731705396171,11.72771542,217.39,217.31,12.68026052]
[1731705396856,0.4290549,217.39,217.37,12.56484422]
[1731705397441,0.4290549,217.39,217.36,12.56484422]
[1731705397858,0.4290549,217.39,217.34,12.56484422]
[1731705398064,0.4290549,217.39,217.35,12.56484422]
[1731705398361,0.4290549,217.39,217.37,12.56484422]
[1731705398756,0.4290549,217.39,217.36,12.56484422]
[1731705399158,3.6490549,217.39,217.31,4.6015]
[1731705399367,3.6490549,217.39,217.29,37.9038]
[1731705399541,12.56484422,217.34,217.3,11.5048]
[1731705399746,12.56484422,217.35,217.3,11.5048]
[1731705399943,3.6490549,217.39,217.3,16.1067]
[1731705400164,3.6490549,217.39,217.3,28.67154422]
[1731705400349,12.56484422,217.36,217.3,16.1067]
[1731705400558,12.56484422,217.36,217.29,45.86664422]
[1731705400873,12.56484422,217.3,217.26,4.6026]
[1731705401049,16.8891549,217.39,217.28,12.56484422]
[1731705401050,12.56484422,217.35,217.28,12.56484422]
[1731705401251,16.8891549,217.39,217.27,0.09367462]
[1731705401761,16.8891549,217.39,217.26,16.1095]
[1731705401762,0.4290549,217.39,217.26,16.1095]
[1731705402064,12.56484422,217.38,217.3,12.56484422]
[1731705402253,3.2203,217.37,217.3,12.56484422]
[1731705402651,3.2203,217.37,217.32,12.56484422]
[1731705403051,3.6490549,217.39,217.32,12.56484422]
[1731705403264,0.4290549,217.39,217.32,12.56484422]
[1731705404057,0.4290549,217.39,217.35,0.09367462]
[1731705404259,0.4290549,217.39,217.35,4.69427462]
[1731705404567,0.4290549,217.39,217.37,0.09367462]
[1731705404772,0.4290549,217.39,217.38,12.78400884]
[1731705405154,0.07875414,217.39,217.38,12.78400884]
[1731705405970,0.07875414,217.39,217.38,17.38420884]
[1731705407472,0.07875414,217.39,217.38,17.50969884]
[1731705407671,0.07875414,217.39,217.38,37.50969884]
[1731705408045,39.1498,217.54,217.39,0.34465462]
[1731705408046,3.2185,217.5,217.39,0.34465462]
[1731705408252,15.78274422,217.53,217.45,12.69033422]
[1731705408554,3.2181,217.52,217.45,12.78400884]
[1731705408854,15.78294422,217.52,217.45,12.56484422]
[1731705409250,3.2181,217.52,217.45,12.56484422]
[1731705409575,11.88634512,217.46,217.45,50.35199884]
[1731705410273,11.88634512,217.46,217.45,70.35199884]
[1731705411172,12.56484422,217.58,217.46,20.25098]
[1731705411469,3.2171,217.59,217.53,12.56484422]
[1731705411848,16.21069912,217.61,217.54,0.09367462]
[1731705412048,0.4290549,217.61,217.56,12.56484422]
[1731705412256,0.4290549,217.61,217.57,12.56484422]
[1731705412461,0.4290549,217.61,217.58,12.56484422]
[1731705412664,0.4290549,217.61,217.57,12.56484422]
[1731705412972,0.4290549,217.61,217.6,0.09367462]
[1731705413160,0.4290549,217.61,217.6,32.90949884]
[1731705413568,0.4290549,217.61,217.6,37.50499884]
[1731705414151,0.4290549,217.61,217.6,43.7075337]
[1731705414767,0.4290549,217.61,217.6,49.99136833]
[1731705415150,0.09663892,217.61,217.6,49.99136833]
[1731705416074,0.09663892,217.61,217.6,50.09136833]
[1731705416248,0.09663892,217.61,217.6,49.99136833]
[1731705417258,12.56484422,217.7,217.62,0.09367462]
[1731705417465,3.215,217.73,217.65,0.09367462]
[1731705417862,12.56484422,217.7,217.63,12.90949884]
[1731705418060,12.56484422,217.71,217.65,4.5945]
[1731705420774,12.56484422,217.7,217.65,4.5945]
[1731705421160,12.56484422,217.67,217.6,12.56484422]
[1731705421370,12.56484422,217.61,217.54,4.5967]
[1731705421556,12.56484422,217.56,217.54,4.5967]
[1731705421862,13.1357,217.68,217.54,4.5967]
[1731705422061,12.56484422,217.6,217.54,4.5967]
[1731705422462,12.56484422,217.6,217.52,12.56484422]
[1731705422661,12.56484422,217.6,217.54,11.4918]
[1731705422860,12.56484422,217.56,217.45,7.4034663]
[1731705423055,12.56484422,217.5,217.44,11.4971]
[1731705423281,12.56484422,217.53,217.46,12.56484422]
[1731705423573,12.56484422,217.54,217.46,12.56484422]
[1731705423774,12.56484422,217.53,217.45,12.56484422]
[1731705424373,12.56484422,217.53,217.44,11.4971]
[1731705424374,12.56484422,217.51,217.44,11.4971]
[1731705424576,12.56484422,217.46,217.37,12.56484422]
[1731705424885,12.56484422,217.41,217.32,11.5037]
[1731705425105,12.56484422,217.41,217.32,28.67004422]
[1731705425255,12.56484422,217.41,217.34,12.56484422]
[1731705426680,12.56484422,217.41,217.32,11.5037]
[1731705426681,12.56484422,217.39,217.32,12.56484422]
[1731705426862,20.1111551,217.38,217.3,20.1111551]
[1731705428670,23.3313551,217.38,217.3,20.1111551]
[1731705429063,20.1111551,217.36,217.29,20.1111551]
[1731705429261,20.1111551,217.35,217.28,20.1111551]
[1731705429470,20.1111551,217.29,217.22,20.1111551]
[1731705429665,20.1111551,217.31,217.23,20.1111551]
[1731705430281,20.1111551,217.31,217.21,11.5095]
[1731705430282,23.3323551,217.31,217.24,20.1111551]
[1731705430485,23.3323551,217.31,217.21,16.1132]
[1731705430486,23.3323551,217.31,217.23,20.1111551]
[1731705430693,20.1111551,217.29,217.22,20.1111551]
[1731705430979,20.1111551,217.29,217.21,20.1111551]
[1731705431172,20.1111551,217.24,217.17,20.1111551]
[1731705431363,20.1111551,217.23,217.16,20.1111551]
[1731705431565,20.1111551,217.22,217.15,31.6234551]
[1731705431879,20.1111551,217.22,217.07,13.89492049]
[1731705431880,20.1111551,217.19,217.12,20.1111551]
[1731705432068,12.2411,217.26,217.1,0.09367462]
[1731705432263,12.2411,217.26,217.09,16.1218]
[1731705432681,15.9139,217.33,217.13,0.1]
[1731705432895,15.9139,217.33,217.15,0.09367462]
[1731705433065,20.1111551,217.32,217.24,20.1111551]
[1731705433263,20.1111551,217.29,217.21,20.1111551]
[1731705433678,20.1111551,217.3,217.23,20.1111551]
[1731705434071,43.8880391,217.32,217.25,20.1111551]
[1731705434275,23.3323551,217.31,217.24,20.1111551]
[1731705434478,20.1111551,217.32,217.25,20.1111551]
[1731705434686,12.693,217.33,217.29,20.1111551]
[1731705434978,3.2206,217.35,217.29,20.1111551]
[1731705435281,53.9659551,217.37,217.3,20.1111551]
[1731705436071,23.3314551,217.37,217.3,20.1111551]
[1731705437365,3.2203,217.37,217.32,20.1111551]
[1731705437581,16.5149,217.39,217.33,20.1111551]
[1731705437982,20.1111551,217.35,217.28,20.1111551]
[1731705438189,20.1111551,217.34,217.27,20.1111551]
[1731705438772,20.1111551,217.36,217.28,20.1111551]
[1731705439170,23.3317551,217.36,217.28,20.1111551]
[1731705439368,23.3317551,217.36,217.29,20.1111551]
[1731705439573,16.5149,217.39,217.32,20.1111551]
[1731705439871,20.1111551,217.38,217.29,20.1111551]
[1731705440065,16.5149,217.39,217.27,36.2199551]
[1731705440066,20.1111551,217.35,217.27,36.2199551]
[1731705440288,16.5149,217.39,217.32,20.1111551]
[1731705440289,36.6260551,217.39,217.32,20.1111551]
[1731705440990,36.6260551,217.39,217.27,20.1111551]
[1731705440991,20.1111551,217.35,217.27,20.1111551]
[1731705441376,20.1111551,217.33,217.26,20.1111551]
[1731705441574,20.1111551,217.31,217.24,20.1111551]
[1731705442488,20.1111551,217.32,217.24,20.1111551]
[1731705442682,23.3321551,217.32,217.24,20.1111551]
[1731705443075,3.221,217.32,217.25,20.1111551]
[1731705443687,3.221,217.32,217.26,20.1111551]
[1731705444187,3.221,217.32,217.27,20.1111551]
[1731705444390,20.1111551,217.38,217.31,20.1111551]
[1731705444568,3.2203,217.37,217.32,20.1111551]
[1731705446182,16.5149,217.39,217.33,20.1111551]
[1731705448484,36.6260551,217.39,217.32,20.1111551]
[1731705449380,20.1111551,217.38,217.3,20.1111551]
[1731705449788,20.1111551,217.38,217.31,20.1111551]
[1731705450702,3.2203,217.37,217.31,20.1111551]
[1731705450883,3.2203,217.37,217.28,4.6022]
[1731705450884,20.1111551,217.34,217.16,0.1]
[1731705451072,3.2203,217.37,217.27,20.1111551]
[1731705451271,20.1111551,217.31,217.17,39.1397]
[1731705451490,11.371,217.37,217.27,20.1111551]
[1731705451704,23.776884,217.36,217.27,20.1111551]
[1731705451895,23.776884,217.36,217.18,0.09367462]
[1731705452194,20.1111551,217.35,217.28,20.1111551]
[1731705452507,3.2207,217.34,217.28,20.1111551]
[1731705452871,3.2201,217.38,217.33,20.1111551]
[1731705453091,13.2949,217.39,217.36,20.1111551]
[1731705453272,3.2199,217.4,217.37,20.1111551]
[1731705454194,3.2199,217.4,217.27,0.34465462]
[1731705454195,3.2195,217.43,217.39,20.1111551]
[1731705454403,3.2189,217.47,217.42,20.1111551]
[1731705454577,45.2012,217.49,217.46,20.1111551]
[1731705454578,12.9543,217.49,217.46,20.1111551]
[1731705454775,3.2183,217.51,217.46,20.1111551]
[1731705455290,3.218,217.53,217.48,20.1111551]
[1731705456202,3.218,217.53,217.49,20.1111551]
[1731705456386,3.218,217.53,217.4,0.34465462]
[1731705456387,3.218,217.53,217.48,20.1111551]
[1731705456588,3.218,217.53,217.47,20.1111551]
[1731705456900,3.218,217.53,217.5,20.1111551]
[1731705457095,12.9543,217.54,217.51,20.1111551]
[1731705457490,20.1111551,217.58,217.52,20.1111551]
[1731705457491,3.2172,217.58,217.52,20.1111551]
[1731705459579,0.1,217.64,217.48,4.598]
[1731705459580,23.3275551,217.63,217.56,20.1111551]
[1731705459781,3.2164,217.63,217.58,20.1111551]
[1731705460005,23.3275551,217.63,217.56,20.1111551]
[1731705460978,3.2164,217.63,217.56,20.1111551]
[1731705461181,3.2164,217.63,217.57,20.1111551]
[1731705462408,23.3275551,217.63,217.56,20.1111551]
[1731705462581,3.2164,217.63,217.54,11.4921]
[1731705462907,3.2164,217.63,217.58,20.1111551]
[1731705463389,3.2164,217.63,217.57,20.1111551]
[1731705463784,3.2164,217.63,217.58,20.1111551]
[1731705464888,12.4944,217.64,217.6,20.1111551]
[1731705465110,35.102,217.66,217.6,20.1111551]
[1731705465111,3.2161,217.66,217.6,20.1111551]
[1731705465813,3.2161,217.66,217.59,20.1111551]
[1731705465999,15.2415,217.69,217.62,20.1111551]
[1731705466197,3.215,217.73,217.68,20.1111551]
[1731705466498,32.2587551,217.75,217.69,20.1111551]
[1731705466499,12.1476,217.75,217.69,20.1111551]
[1731705466702,12.1476,217.75,217.62,20.34465462]
[1731705467413,12.1476,217.75,217.69,20.1111551]
[1731705467414,15.3623,217.75,217.69,20.1111551]
[1731705468591,12.1476,217.75,217.7,20.1111551]
[1731705469089,23.3252551,217.79,217.72,20.1111551]
[1731705469609,20.1111551,217.79,217.72,20.1111551]
[1731705470196,34.2968861,217.8,217.72,20.1111551]
[1731705471006,14.185731,217.8,217.75,20.1111551]
[1731705471208,14.185731,217.8,217.77,20.1111551]
[1731705472621,14.185731,217.8,217.75,20.1111551]
[1731705472784,20.1111551,217.77,217.7,24.7044551]
[1731705473391,20.1111551,217.78,217.7,24.7044551]
[1731705473597,20.1111551,217.78,217.71,20.1111551]
[1731705473817,20.1111551,217.79,217.72,20.1111551]
[1731705474815,14.185731,217.8,217.73,20.45580972]
[1731705475006,14.185731,217.8,217.77,20.1111551]
[1731705475322,14.185731,217.8,217.76,20.1111551]
[1731705475813,14.185731,217.8,217.75,20.1111551]
[1731705476209,14.185731,217.8,217.76,4.5922]
[1731705476917,14.185731,217.8,217.75,20.1111551]
[1731705476918,34.2968861,217.8,217.75,4.5923]
[1731705477116,14.185731,217.8,217.75,4.5923]
[1731705478710,14.185731,217.8,217.76,20.1111551]
[1731705479021,14.185731,217.8,217.74,20.1111551]
[1731705479219,14.185731,217.8,217.76,20.1111551]
[1731705479597,1.294731,217.8,217.79,40.3621351]
[1731705479797,0.4290549,217.83,217.79,40.3621351]
[1731705479798,0.4290549,217.83,217.8,0.34465462]
[1731705480100,0.4290549,217.83,217.82,20.20482972]
[1731705480301,0.4290549,217.83,217.82,20.45580972]
[1731705480606,0.4290549,217.83,217.82,25.04670972]
[1731705482822,20.1111551,217.94,217.83,20.34465462]
[1731705483021,20.1111551,217.94,217.87,0.09367462]
[1731705483201,20.1111551,217.92,217.87,0.09367462]
[1731705483807,20.1111551,217.92,217.88,4.5896]
[1731705484007,8.0247,218.08,217.91,20.33031972]
[1731705484209,8.0247,218.08,217.91,0.21916462]
[1731705484420,20.1111551,217.98,217.91,0.21916462]
[1731705484921,19.6111551,217.98,217.91,0.09367462]
[1731705485225,20.1111551,217.98,217.92,4.5888]
[1731705485420,10.5,218.0,217.93,20.1111551]
[1731705485803,20.1111551,217.99,217.91,20.20482972]
[1731705486210,10.5,218.0,217.91,20.20482972]